fUST/lending_fUST_20251212
["ID","MTS","AMOUNT","RATE_DAILY","PERIOD"]
[398348737,1765541443391,-500.0,8.531e-05,2]
[398348738,1765541443400,-500.0,8.531e-05,2]
[398348739,1765541443410,-293.27,8.8e-05,2]
[398348740,1765541443419,-293.27,8.9e-05,2]
[398348741,1765541443429,-869.2,8.951e-05,2]
[398348742,1765541443438,-293.27,9e-05,2]
[398348743,1765541443448,-293.27,9.1e-05,2]
[398348744,1765541443457,-293.27,9.2e-05,2]
[398348745,1765541443466,-293.27,9.3e-05,2]
[398348746,1765541443476,-293.27,9.4e-05,2]
[398348747,1765541443485,-293.27,9.5e-05,2]
[398348748,1765541443495,-204.016208,9.544e-05,2]
[398348749,1765541443504,-1086.5,9.59e-05,2]
[398348750,1765541443514,-293.27,9.6e-05,2]
[398348751,1765541443524,-2000.0,9.702e-05,2]
[398348752,1765541443534,-12026.62918569,9.703e-05,2]
[398348753,1765541443543,-293.27,9.8e-05,2]
[398348754,1765541443553,-293.27,9.9e-05,2]
[398348755,1765541443562,-293.27,0.0001,2]
[398348756,1765541443572,-293.27,0.000101,2]
[398348757,1765541443581,-293.27,0.000102,2]
[398348758,1765541443591,-1303.81,0.00010229,2]
[398348759,1765541443600,-178.327881,0.00010265,2]
[398348760,1765541443610,-293.27,0.000103,2]
[398348761,1765541443620,-293.27,0.000104,2]
[398348762,1765541443629,-281.91,0.000104,2]
[398348763,1765541443638,-181.85,0.000104,2]
[398348764,1765541443647,-42.7834461,0.000104,2]
[398348765,1765541443710,-21.69887057,0.000104,2]
[398348768,1765541446006,-117.36768333,0.000104,2]
[398348769,1765541446016,-181.85,0.000104,2]
[398348770,1765541446026,-181.85,0.000104,2]
[398348771,1765541446036,-181.85,0.000104,2]
[398348772,1765541446046,-181.85,0.000104,2]
[398348773,1765541446055,-181.84,0.000104,2]
[398348774,1765541446065,-293.27,0.000105,2]
[398348775,1765541446074,-177.0,0.00010531,2]
[398348776,1765541446087,-16.37041753,0.000106,2]
[398348777,1765541464709,173.54,7.505e-05,2]
[398348778,1765541465195,347.08,8.187e-05,2]
[398348780,1765541545213,171.87,7.529e-05,2]
[398348781,1765541545613,343.75,8.213e-05,2]
[398348782,1765541624228,170.19,7.332e-05,2]
[398348783,1765541624611,340.39,7.999e-05,2]
[398348784,1765541654778,5000.0,8.416e-05,2]
[398348785,1765541659040,193.23,8.4e-05,2]
[398348786,1765541662917,4806.78,8.416e-05,2]
[398348787,1765541662939,193.22,8.416e-05,2]
[398348788,1765541677852,5000.0,8.416e-05,2]
[398348789,1765541700763,5000.0,8.416e-05,2]
[398348790,1765541706234,0.01,6.906e-05,2]
[398348791,1765541706262,168.57,6.906e-05,2]
[398348792,1765541706684,337.17,7.534e-05,2]
[398348793,1765541707074,505.75,8.162e-05,2]
[398348794,1765541723250,5000.0,8.416e-05,2]
[398348795,1765541745958,3988.52,8.416e-05,2]
[398348796,1765541745980,1011.48,8.416e-05,2]
[398348797,1765541768538,5000.0,8.416e-05,2]
[398348798,1765541787623,164.7,7.282e-05,2]
[398348799,1765541787820,329.41,7.944e-05,2]
[398348801,1765541847855,3494.42,8.416e-05,2]
[398348802,1765541847878,1505.58,8.416e-05,2]
[398348803,1765541867901,168.68,7.436e-05,2]
[398348804,1765541868312,337.36,8.112e-05,2]
[398348805,1765541871740,5000.0,8.416e-05,2]
[398348806,1765541894570,2988.39,8.416e-05,2]
[398348807,1765541894757,2011.61,8.416e-05,2]
[398348808,1765541916639,5000.0,8.416e-05,2]
[398348809,1765541939652,2988.4,8.416e-05,2]
[398348810,1765541939755,2011.6,8.416e-05,2]
[398348811,1765541948012,172.34,6.889e-05,2]
[398348812,1765541948393,344.69,7.515e-05,2]
[398348813,1765541948813,517.03,8.141e-05,2]
[398348814,1765541962024,5000.0,8.416e-05,2]
[398348815,1765541983854,1954.35,8.416e-05,2]
[398348816,1765541983875,3045.65,8.416e-05,2]
[398348818,1765542006913,5000.0,8.416e-05,2]
[398348819,1765542028276,164.31,6.899e-05,2]
[398348820,1765542028694,328.62,7.526e-05,2]
[398348821,1765542028936,1461.43,8.416e-05,2]
[398348822,1765542028960,3538.57,8.416e-05,2]
[398348823,1765542029092,492.93,8.153e-05,2]
[398348824,1765542051773,5000.0,8.416e-05,2]
[398348825,1765542060215,968.51,8.416e-05,2]
[398348826,1765542060239,4031.49,8.416e-05,2]
[398348827,1765542075310,5000.0,8.416e-05,2]
[398348828,1765542083020,968.52,8.416e-05,2]
[398348829,1765542083043,4031.48,8.416e-05,2]
[398348830,1765542098527,5000.0,8.416e-05,2]
[398348831,1765542106823,968.53,8.416e-05,2]
[398348832,1765542108882,156.96,7.484e-05,2]
[398348833,1765542109326,313.92,8.164e-05,2]
[398348834,1765542109391,-4031.47,8.416e-05,2]
[398348835,1765542122097,1937.07,8.416e-05,2]
[398348836,1765542122120,3062.93,8.416e-05,2]
[398348837,1765542129849,5000.0,8.416e-05,2]
[398348838,1765542140683,189.37,8.4e-05,2]
[398348839,1765542145035,4810.64,8.416e-05,2]
[398348840,1765542145057,189.36,8.416e-05,2]
[398348841,1765542153303,5000.0,8.416e-05,2]
[398348842,1765542168535,4810.65,8.416e-05,2]
[398348843,1765542168558,189.35,8.416e-05,2]
[398348844,1765542176875,5000.0,8.416e-05,2]
[398348845,1765542188317,161.38,7.478e-05,2]
[398348846,1765542188731,322.76,8.158e-05,2]
[398348847,1765542192969,4326.52,8.416e-05,2]
[398348848,1765542192993,673.48,8.416e-05,2]
[398348849,1765542200846,5000.0,8.416e-05,2]
[398348850,1765542216056,4326.53,8.416e-05,2]
[398348851,1765542216080,673.47,8.416e-05,2]
[398348852,1765542224398,5000.0,8.416e-05,2]
[398348853,1765542239602,4326.54,8.416e-05,2]
[398348854,1765542239625,673.46,8.416e-05,2]
[398348855,1765542247957,5000.0,8.416e-05,2]
[398348856,1765542263675,4326.55,8.416e-05,2]
[398348857,1765542263697,673.45,8.416e-05,2]
[398348858,1765542271460,5000.0,8.416e-05,2]
[398348859,1765542273781,161.16,6.95e-05,2]
[398348860,1765542274183,322.33,7.582e-05,2]
[398348861,1765542274579,483.49,8.214e-05,2]
[398348862,1765542287220,3359.58,8.416e-05,2]
[398348863,1765542287242,1640.42,8.416e-05,2]
[398348864,1765542295113,5000.0,8.416e-05,2]
[398348865,1765542310303,3359.59,8.416e-05,2]
[398348866,1765542310342,1640.41,8.416e-05,2]
[398348867,1765542318785,5000.0,8.416e-05,2]
[398348869,1765542334773,3359.6,8.416e-05,2]
[398348870,1765542334797,1640.4,8.416e-05,2]
[398348871,1765542342662,5000.0,8.416e-05,2]
[398348872,1765542353852,154.83,6.949e-05,2]
[398348873,1765542354008,309.66,7.581e-05,2]
[398348874,1765542354473,464.49,8.213e-05,2]
[398348875,1765542358376,2430.63,8.416e-05,2]
[398348876,1765542366162,5000.0,8.413e-05,2]
[398348877,1765542369072,-2569.37,8.416e-05,2]
[398348878,1765542374603,2982.40802927,8.416e-05,2]
[398348879,1765542382420,1878.86197073,8.416e-05,2]
[398348880,1765542382443,3121.13802927,8.416e-05,2]
[398348882,1765542390562,5000.0,8.416e-05,2]
[398348883,1765542398661,1878.87197073,8.416e-05,2]
[398348884,1765542398685,3121.12802927,8.416e-05,2]
[398348885,1765542407420,5000.0,8.416e-05,2]
[398348886,1765542415222,1878.88197073,8.416e-05,2]
[398348887,1765542415245,262.08802927,8.416e-05,2]
[398348890,1765542423727,1453.63852333,8.416e-05,2]
[398348891,1765542432031,5000.0,8.416e-05,2]
[398348892,1765542433931,152.85,6.952e-05,2]
[398348893,1765542434365,305.7,7.584e-05,2]
[398348894,1765542434911,458.55,8.216e-05,2]
[398348895,1765542447575,2367.1834474,8.416e-05,2]
[398348896,1765542447598,1179.17802927,8.416e-05,2]
[398348897,1765542455328,5000.0,8.416e-05,2]
[398348899,1765542478204,3820.83197073,8.416e-05,2]
[398348900,1765542478229,1179.16802927,8.416e-05,2]
[398348902,1765542500600,5000.0,8.416e-05,2]
[398348903,1765542518519,150.0,7.144e-05,2]
[398348904,1765542518606,294.45,7.793e-05,2]
[398348905,1765542523372,3376.39197073,8.416e-05,2]
[398348906,1765542523395,1623.60802927,8.416e-05,2]
[398348907,1765542546175,5000.0,8.416e-05,2]
[398348908,1765542554768,3376.40197073,8.416e-05,2]
[398348909,1765542554792,1623.59802927,8.416e-05,2]
[398348910,1765542569977,5000.0,8.416e-05,2]
[398348911,1765542577853,3376.41197073,8.416e-05,2]
[398348912,1765542577876,1623.58802927,8.416e-05,2]
[398348914,1765542597810,150.0,7.058e-05,2]
[398348915,1765542598214,294.82,7.7e-05,2]
[398348916,1765542598655,442.24,8.341e-05,2]
[398348951,1765542632126,-307.49,8.517e-05,2]
[398348952,1765542632136,-292.51,8.603e-05,2]
[398348953,1765542632147,-841.6034007,8.603e-05,2]
[398348954,1765542632390,-3865.8865993,8.603e-05,2]
[398348955,1765542632400,-150.0,8.69e-05,2]
[398348956,1765542632410,-185.58,8.8e-05,2]
[398348957,1765542632420,-185.58,8.9e-05,2]
[398348958,1765542632430,-589.65,8.983e-05,2]
[398348959,1765542632439,-185.58,9e-05,2]
[398348960,1765542632448,-185.58,9.1e-05,2]
[398348961,1765542632459,-291.0,9.107e-05,2]
[398348962,1765542632468,-300.0,9.107e-05,2]
[398348963,1765542632478,-1200.0,9.107e-05,2]
[398348964,1765542632488,-3285.9255325,9.108e-05,2]
[398348965,1765542632497,-185.58,9.2e-05,2]
[398348966,1765542632506,-184.81443446,9.277e-05,2]
[398348967,1765542632516,-185.58,9.3e-05,2]
[398348968,1765542632526,-185.58,9.4e-05,2]
[398348969,1765542632536,-300.0,9.485e-05,2]
[398348970,1765542632545,-300.0,9.485e-05,2]
[398348971,1765542632554,-300.0,9.485e-05,2]
[398348972,1765542632564,-300.0,9.485e-05,2]
[398348973,1765542632574,-300.0,9.485e-05,2]
[398348974,1765542632583,-300.0,9.485e-05,2]
[398348975,1765542632593,-300.0,9.485e-05,2]
[398348976,1765542632602,-300.0,9.485e-05,2]
[398348977,1765542632612,-300.0,9.485e-05,2]
[398348978,1765542632622,-300.0,9.485e-05,2]
[398348979,1765542632631,-300.0,9.485e-05,2]
[398348980,1765542632641,-300.0,9.485e-05,2]
[398348981,1765542632650,-300.0,9.485e-05,2]
[398348982,1765542632659,-300.0,9.485e-05,2]
[398348983,1765542632669,-300.0,9.485e-05,2]
[398348984,1765542632678,-185.58,9.5e-05,2]
[398348985,1765542632687,-185.58,9.6e-05,2]
[398348986,1765542632697,-737.06,9.625e-05,2]
[398348987,1765542632707,-185.58,9.8e-05,2]
[398348988,1765542632716,-185.58,9.9e-05,2]
[398348989,1765542632726,-185.58,0.0001,2]
[398348990,1765542632735,-420.0,0.00010018,2]
[398348991,1765542632747,-185.58,0.000101,2]
[398348992,1765542632756,-782.27397092,0.00010171,2]
[398348993,1765542632766,-185.58,0.000102,2]
[398348994,1765542632775,-884.47,0.00010266,2]
[398348995,1765542632785,-185.58,0.000103,2]
[398348996,1765542632795,-185.58,0.000104,2]
[398348997,1765542632804,-185.58,0.000105,2]
[398348998,1765542632814,-2000.0,0.00010599,2]
[398348999,1765542632823,-185.58,0.000106,2]
[398349000,1765542632832,-177.0,0.0001069,2]
[398349001,1765542632843,-185.58,0.000107,2]
[398349002,1765542632853,-185.58,0.000108,2]
[398349003,1765542632863,-400.0,0.00010883,2]
[398349004,1765542632872,-574.12855637,0.00010883,2]
[398349005,1765542632882,-255.0,0.00010883,2]
[398349006,1765542633028,-2773.56790519,0.00010883,2]
[398349007,1765542633038,-185.58,0.000109,2]
[398349008,1765542633047,-1031.88,0.00010908,2]
[398349009,1765542633056,-600.0,0.00010914,2]
[398349010,1765542633066,-10000.0,0.00011,2]
[398349011,1765542633076,-185.58,0.00011,2]
[398349012,1765542633085,-229.779,0.00011019,2]
[398349013,1765542633096,-587.0,0.00011019,2]
[398349014,1765542633105,-782.27397092,0.00011045,2]
[398349015,1765542633114,-185.58,0.000111,2]
[398349016,1765542633124,-185.58,0.000112,2]
[398349017,1765542633133,-185.58,0.000113,2]
[398349018,1765542633143,-377.62036942,0.00011431,2]
[398349019,1765542633152,-595.37131296,0.00011431,2]
[398349020,1765542633162,-255.0,0.00011431,2]
[398349021,1765542633171,-2876.18991768,0.00011431,2]
[398349022,1765542633181,-185.58,0.000115,2]
[398349023,1765542633191,-1179.3,0.0001155,2]
[398349024,1765542633200,-185.58,0.000116,2]
[398349025,1765542633209,-151.0,0.000117,2]
[398349026,1765542633219,-185.58,0.000117,2]
[398349027,1765542633228,-185.58,0.000118,2]
[398349028,1765542633237,-185.58,0.000119,2]
[398349029,1765542633247,-782.27397092,0.0001192,2]
[398349030,1765542633257,-1000.0,0.0001192,2]
[398349031,1765542633267,-1000.0,0.0001192,2]
[398349032,1765542633276,-1000.0,0.0001192,2]
[398349033,1765542633285,-617.1226,0.0001192,2]
[398349034,1765542633295,-617.40005154,0.00011979,2]
[398349035,1765542633304,-255.0,0.00011979,2]
[398349036,1765542633314,-1138.68371489,0.00011979,2]
[398349037,1765542633324,-184.97618644,0.00011999,2]
[398349038,1765542633334,-185.58,0.00012,2]
[398349039,1765542633343,-500.0,0.00012,2]
[398349040,1765542633353,-500.0,0.00012,2]
[398349041,1765542633362,-500.0,0.00012,2]
[398349042,1765542633372,-500.0,0.00012,2]
[398349043,1765542633381,-500.0,0.00012,2]
[398349044,1765542633390,-500.0,0.00012,2]
[398349045,1765542633400,-500.0,0.00012,2]
[398349046,1765542633410,-500.0,0.00012,2]
[398349047,1765542633419,-500.0,0.00012,2]
[398349048,1765542633429,-500.0,0.00012,2]
[398349049,1765542633438,-500.0,0.00012,2]
[398349050,1765542633447,-500.0,0.00012,2]
[398349051,1765542633457,-500.0,0.00012,2]
[398349052,1765542633467,-500.0,0.00012,2]
[398349053,1765542633476,-500.0,0.00012,2]
[398349054,1765542633485,-500.0,0.00012,2]
[398349055,1765542633495,-500.0,0.00012,2]
[398349056,1765542633504,-500.0,0.00012,2]
[398349057,1765542633514,-500.0,0.00012,2]
[398349058,1765542633523,-500.0,0.00012,2]
[398349059,1765542633532,-301.83664065,0.00012,2]
[398349060,1765542633541,-500.0,0.00012,2]
[398349061,1765542633550,-500.0,0.00012,2]
[398349062,1765542633559,-500.0,0.00012,2]
[398349063,1765542633568,-500.0,0.00012,2]
[398349064,1765542633577,-500.0,0.00012,2]
[398349065,1765542633588,-500.0,0.00012,2]
[398349066,1765542633597,-500.0,0.00012,2]
[398349067,1765542633609,-500.0,0.00012,2]
[398349068,1765542633624,-500.0,0.00012,2]
[398349069,1765542633640,-500.0,0.00012,2]
[398349070,1765542633649,-500.0,0.00012,2]
[398349071,1765542633658,-500.0,0.00012,2]
[398349072,1765542633667,-500.0,0.00012,2]
[398349073,1765542633676,-500.0,0.00012,2]
[398349074,1765542633684,-553.35255432,0.00012,2]
[398349075,1765542633693,-553.35255432,0.00012,2]
[398349076,1765542633704,-553.35255432,0.00012,2]
[398349077,1765542633712,-553.35255432,0.00012,2]
[398349078,1765542633721,-553.35255432,0.00012,2]
[398349079,1765542633730,-553.35255432,0.00012,2]
[398349080,1765542633739,-553.35255432,0.00012,2]
[398349081,1765542633747,-553.35255432,0.00012,2]
[398349082,1765542633756,-553.35255432,0.00012,2]
[398349083,1765542633765,-553.35255432,0.00012,2]
[398349084,1765542633774,-553.35255432,0.00012,2]
[398349085,1765542633782,-553.35255432,0.00012,2]
[398349086,1765542633791,-553.35255432,0.00012,2]
[398349087,1765542633801,-553.35255432,0.00012,2]
[398349088,1765542633810,-553.35255432,0.00012,2]
[398349089,1765542633818,-553.35255432,0.00012,2]
[398349090,1765542633827,-553.35255432,0.00012,2]
[398349091,1765542633836,-553.35255432,0.00012,2]
[398349092,1765542633844,-553.35255432,0.00012,2]
[398349093,1765542633853,-553.35255432,0.00012,2]
[398349094,1765542633862,-553.35255432,0.00012,2]
[398349095,1765542633871,-553.35255432,0.00012,2]
[398349096,1765542633879,-553.35255432,0.00012,2]
[398349097,1765542633888,-553.35255432,0.00012,2]
[398349098,1765542633898,-553.35255432,0.00012,2]
[398349099,1765542633907,-553.35255432,0.00012,2]
[398349100,1765542633916,-553.35255432,0.00012,2]
[398349101,1765542633925,-553.35255432,0.00012,2]
[398349102,1765542633934,-553.35255432,0.00012,2]
[398349103,1765542633943,-553.35255432,0.00012,2]
[398349104,1765542633952,-553.35255432,0.00012,2]
[398349105,1765542633961,-553.35255432,0.00012,2]
[398349106,1765542633970,-553.35255432,0.00012,2]
[398349107,1765542633979,-553.35255432,0.00012,2]
[398349108,1765542633988,-553.35255432,0.00012,2]
[398349109,1765542633997,-553.35255432,0.00012,2]
[398349110,1765542634006,-553.35255432,0.00012,2]
[398349111,1765542634016,-553.35255432,0.00012,2]
[398349112,1765542634024,-553.35255432,0.00012,2]
[398349113,1765542634034,-553.35255432,0.00012,2]
[398349114,1765542634043,-536.32632189,0.00012,2]
[398349115,1765542634052,-536.32632189,0.00012,2]
[398349116,1765542634061,-536.32632189,0.00012,2]
[398349117,1765542634070,-536.32632189,0.00012,2]
[398349118,1765542634080,-209.16932304,0.00012,2]
[398349119,1765542634094,-327.15699885,0.00012,2]
[398349120,1765542634104,-536.32632189,0.00012,2]
[398349121,1765542634113,-536.32632189,0.00012,2]
[398349122,1765542634122,-10.91544126,0.00012,2]
[398349181,1765542643363,-1518.91961997,0.0001188,2]
[398349183,1765542646102,-3481.08038003,0.0001188,2]
[398349184,1765542646112,-500.0,0.00012004,2]
[398349185,1765542646121,-151.0,0.00012004,2]
[398349186,1765542646130,-151.0,0.00012004,2]
[398349187,1765542646139,-151.0,0.00012004,2]
[398349188,1765542646148,-500.0,0.00012004,2]
[398349189,1765542646157,-500.0,0.00012004,2]
[398349190,1765542646166,-720.0,0.00012005,2]
[398349191,1765542646175,-151.46588639,0.0001208,2]
[398349192,1765542646184,-151.0,0.00012098,2]
[398349193,1765542646193,-185.58,0.000121,2]
[398349194,1765542646202,-500.0,0.00012141,2]
[398349195,1765542646211,-198.71215558,0.00012141,2]
[398349196,1765542646220,-198.96069389,0.00012141,2]
[398349197,1765542646229,-500.0,0.00012141,2]
[398349198,1765542646238,-500.0,0.00012141,2]
[398349199,1765542646247,-24623.8273403,0.00012168,2]
[398349201,1765542675580,150.0,8.05e-05,2]
[398349202,1765542758074,150.0,8.062e-05,2]
[398349203,1765542839364,150.0,6.935e-05,2]
[398349204,1765542839763,152.04,7.565e-05,2]
[398349205,1765542840178,228.06,8.196e-05,2]
[398349209,1765542918343,150.0,7.133e-05,2]
[398349210,1765542918581,150.0,7.781e-05,2]
[398349211,1765542997196,150.0,6.939e-05,2]
[398349212,1765542997580,150.0,7.57e-05,2]
[398349213,1765542998608,202.68,8.201e-05,2]
[398349218,1765543075217,150.0,6.936e-05,2]
[398349219,1765543075695,150.0,7.566e-05,2]
[398349220,1765543076108,183.48,8.197e-05,2]
[398349221,1765543079640,284.13,8.409e-05,2]
[398349222,1765543157719,150.0,6.941e-05,2]
[398349223,1765543158132,150.0,7.572e-05,2]
[398349224,1765543158806,165.02,8.203e-05,2]
[398349225,1765543206656,-5000.0,8.509e-05,2]
[398349226,1765543221854,-150.0,8.595e-05,2]
[398349227,1765543223020,5000.0,8.509e-05,2]
[398349228,1765543235710,150.0,7e-05,2]
[398349229,1765543236107,150.0,7.637e-05,2]
[398349230,1765543236515,164.45,8.273e-05,2]
[398349231,1765543252420,-5000.0,8.595e-05,2]
[398349234,1765543282845,-5000.0,8.595e-05,2]
[398349235,1765543292769,0.01,8.595e-05,2]
[398349236,1765543292793,4999.99,8.595e-05,2]
[398349238,1765543301023,5000.0,8.595e-05,2]
[398349239,1765543316526,150.0,6.936e-05,2]
[398349240,1765543316949,150.0,7.566e-05,2]
[398349241,1765543317360,163.9,8.197e-05,2]
[398349243,1765543331877,-620.82,8.509e-05,2]
[398349244,1765543346640,-5000.0,8.595e-05,2]
[398349245,1765543361262,0.01,8.595e-05,2]
[398349246,1765543361290,4999.99,8.595e-05,2]
[398349247,1765543379289,-4663.9708742,8.595e-05,2]
[398349248,1765543385019,672.0682516,8.595e-05,2]
[398349249,1765543385043,4327.9317484,8.595e-05,2]
[398349251,1765543392448,150.0,6.949e-05,2]
[398349252,1765543392848,150.0,7.58e-05,2]
[398349253,1765543393100,5000.0,8.595e-05,2]
[398349254,1765543393289,150.0,8.212e-05,2]
[398349255,1765543429607,-5000.0,8.509e-05,2]
[398349259,1765543439904,0.01,8.509e-05,2]
[398349260,1765543439926,4999.99,8.509e-05,2]
[398349261,1765543469379,150.0,6.938e-05,2]
[398349262,1765543469797,150.0,7.569e-05,2]
[398349263,1765543470227,150.0,8.2e-05,2]
[398349264,1765543470610,-1796.27,8.509e-05,2]
[398349265,1765543501052,-5000.0,8.595e-05,2]
[398349266,1765543546607,150.0,7.037e-05,2]
[398349267,1765543547031,150.0,7.676e-05,2]
[398349268,1765543547438,150.0,8.316e-05,2]
[398349269,1765543622548,150.0,7.029e-05,2]
[398349270,1765543622978,150.0,7.668e-05,2]
[398349271,1765543623392,150.0,8.307e-05,2]
[398349272,1765543696249,150.0,7.028e-05,2]
[398349273,1765543697019,150.0,7.666e-05,2]
[398349274,1765543697207,150.0,8.305e-05,2]
[398349276,1765543716275,5000.0,8.532e-05,2]
[398349277,1765543724167,4231.81,8.532e-05,2]
[398349279,1765543739433,768.2,8.532e-05,2]
[398349280,1765543739455,4231.8,8.532e-05,2]
[398349281,1765543747998,768.19,8.532e-05,2]
[398349282,1765543763849,5000.0,8.532e-05,2]
[398349283,1765543767092,-150.0,8.638e-05,2]
[398349284,1765543767112,-170.34183591,8.682e-05,2]
[398349285,1765543769487,0.02,7.02e-05,2]
[398349286,1765543769513,149.98,7.02e-05,2]
[398349287,1765543769724,150.0,7.658e-05,2]
[398349288,1765543770160,150.0,8.297e-05,2]
[398349289,1765543786575,5000.0,8.532e-05,2]
[398349290,1765543809252,4550.03,8.532e-05,2]
[398349291,1765543809277,449.97,8.532e-05,2]
[398349313,1765543832121,-36.59086782,8.682e-05,2]
[398349315,1765543832131,-150.0,8.691e-05,2]
[398349317,1765543832140,-503.5,8.7e-05,2]
[398349319,1765543832151,-151.1,8.8e-05,2]
[398349321,1765543832161,-150.0,8.946e-05,2]
[398349323,1765543832171,-151.1,9e-05,2]
[398349325,1765543832181,-1200.0,9.103e-05,2]
[398349328,1765543832192,-300.0,9.103e-05,2]
[398349329,1765543832202,-300.0,9.103e-05,2]
[398349331,1765543832212,-1200.0,9.103e-05,2]
[398349333,1765543832223,-300.0,9.104e-05,2]
[398349336,1765543832234,-3249.2177279,9.105e-05,2]
[398349337,1765543832245,-151.1,9.2e-05,2]
[398349340,1765543832257,-300.0,9.383e-05,2]
[398349341,1765543832268,-300.0,9.383e-05,2]
[398349342,1765543832278,-27.31744851,9.383e-05,2]
[398349343,1765543832291,-272.68255149,9.383e-05,2]
[398349344,1765543832302,-300.0,9.383e-05,2]
[398349345,1765543832312,-300.0,9.383e-05,2]
[398349346,1765543832322,-300.0,9.383e-05,2]
[398349347,1765543832332,-300.0,9.383e-05,2]
[398349348,1765543832343,-300.0,9.383e-05,2]
[398349349,1765543832358,-300.0,9.383e-05,2]
[398349350,1765543832368,-300.0,9.383e-05,2]
[398349351,1765543832378,-300.0,9.383e-05,2]
[398349352,1765543832387,-300.0,9.383e-05,2]
[398349353,1765543832397,-300.0,9.383e-05,2]
[398349354,1765543832407,-300.0,9.383e-05,2]
[398349355,1765543832417,-300.0,9.383e-05,2]
[398349356,1765543832427,-151.1,9.4e-05,2]
[398349357,1765543832438,-600.0,9.57e-05,2]
[398349358,1765543832448,-150.0,9.583e-05,2]
[398349359,1765543832459,-151.1,9.6e-05,2]
[398349360,1765543832469,-151.1,9.8e-05,2]
[398349361,1765543832480,-313.472713,9.984e-05,2]
[398349362,1765543832490,-151.1,0.0001,2]
[398349363,1765543832501,-360.0,0.00010013,2]
[398349364,1765543832511,-360.0,0.00010019,2]
[398349365,1765543832525,-151.1,0.000102,2]
[398349366,1765543832535,-150.0,0.00010211,2]
[398349367,1765543832546,-255.0,0.00010286,2]
[398349368,1765543832556,-198.0,0.00010286,2]
[398349369,1765543832566,-250.0,0.00010338,2]
[398349370,1765543832576,-151.1,0.000104,2]
[398349371,1765543832586,-720.0,0.00010527,2]
[398349372,1765543832600,-151.1,0.000106,2]
[398349373,1765543832609,-177.0,0.00010691,2]
[398349374,1765543832619,-151.1,0.000108,2]
[398349375,1765543832628,-216.866,0.00010819,2]
[398349376,1765543832638,-441.57167424,0.0001083,2]
[398349377,1765543832648,-255.0,0.00010834,2]
[398349378,1765543832658,-156.65,0.00010849,2]
[398349379,1765543832667,-313.472713,0.00010905,2]
[398349380,1765543832677,-10000.0,0.00011,2]
[398349381,1765543832687,-500.0,0.00011,2]
[398349382,1765543832697,-151.1,0.00011,2]
[398349383,1765543832707,-151.1,0.000112,2]
[398349384,1765543832718,-500.0,0.00011274,2]
[398349385,1765543832728,-255.0,0.00011382,2]
[398349386,1765543832737,-1000.0,0.00011382,2]
[398349387,1765543832747,-810.9366,0.00011382,2]
[398349388,1765543832756,-362.1873,0.00011382,2]
[398349389,1765543832765,-151.1,0.000114,2]
[398349390,1765543832775,-500.0,0.00011421,2]
[398349391,1765543832784,-500.0,0.00011421,2]
[398349392,1765543832793,-299.50836154,0.00011421,2]
[398349393,1765543832802,-500.0,0.00011421,2]
[398349394,1765543832811,-500.0,0.00011421,2]